fUSD/lending_fUSD_20250206
["ID","MTS","AMOUNT","RATE_DAILY","PERIOD"]
[351871860,1738825872035,-981.52838115,0.00020228,3]
[351871861,1738825872045,-151.0,0.00020228,2]
[351871862,1738825872055,-500.0,0.00020228,3]
[351871863,1738825872065,-500.0,0.00020228,3]
[351871864,1738825872075,-500.0,0.00020228,3]
[351871865,1738825872084,-500.0,0.00020228,3]
[351871866,1738825872094,-500.0,0.00020228,3]
[351871867,1738825872104,-500.0,0.00020228,3]
[351871868,1738825872113,-500.0,0.00020228,3]
[351871869,1738825872127,-500.0,0.00020228,3]
[351871870,1738825872137,-500.0,0.00020228,3]
[351871871,1738825872146,-500.0,0.00020228,3]
[351871872,1738825872156,-500.0,0.00020228,3]
[351871873,1738825872166,-500.0,0.00020228,3]
[351871874,1738825872176,-500.0,0.00020228,3]
[351871875,1738825872185,-500.0,0.00020228,3]
[351871876,1738825872195,-261.38,0.00020228,3]
[351871877,1738825872205,-500.0,0.00020228,3]
[351871878,1738825872214,-500.0,0.00020228,3]
[351871879,1738825872224,-500.0,0.00020228,3]
[351871880,1738825872234,-500.0,0.00020228,3]
[351871881,1738825872243,-500.0,0.00020228,3]
[351871882,1738825872253,-500.0,0.00020228,3]
[351871883,1738825872263,-500.0,0.00020228,3]
[351871884,1738825872273,-500.0,0.00020228,3]
[351871885,1738825872283,-500.0,0.00020228,3]
[351871886,1738825872293,-500.0,0.00020228,3]
[351871887,1738825872302,-407.34,0.00020228,3]
[351871888,1738825872312,-500.0,0.00020228,3]
[351871889,1738825872321,-500.0,0.00020228,3]
[351871890,1738825872330,-500.0,0.00020228,3]
[351871891,1738825872340,-500.0,0.00020228,3]
[351871892,1738825872351,-500.0,0.00020228,3]
[351871893,1738825872360,-500.0,0.00020228,3]
[351871894,1738825872370,-500.0,0.00020228,3]
[351871895,1738825872380,-500.0,0.00020228,3]
[351871896,1738825872390,-500.0,0.00020228,3]
[351871897,1738825872399,-181.06,0.00020228,3]
[351871898,1738825872410,-500.0,0.00020228,3]
[351871899,1738825872419,-500.0,0.00020228,3]
[351871900,1738825872429,-500.0,0.00020228,3]
[351871901,1738825872439,-500.0,0.00020228,3]
[351871902,1738825872448,-500.0,0.00020228,3]
[351871903,1738825872459,-500.0,0.00020228,3]
[351871904,1738825872469,-500.0,0.00020228,3]
[351871905,1738825872478,-500.0,0.00020228,3]
[351871906,1738825872488,-500.0,0.00020228,3]
[351871907,1738825872498,-500.0,0.00020228,3]
[351871908,1738825872508,-558.8,0.00020228,3]
[351871909,1738825872517,-500.0,0.00020228,3]
[351871910,1738825872527,-500.0,0.00020228,3]
[351871911,1738825872536,-500.0,0.00020228,3]
[351871912,1738825872545,-500.0,0.00020228,3]
[351871913,1738825872555,-500.0,0.00020228,3]
[351871914,1738825872564,-500.0,0.00020228,3]
[351871915,1738825872573,-500.0,0.00020228,3]
[351871916,1738825872583,-500.0,0.00020228,3]
[351871917,1738825872593,-500.0,0.00020228,3]
[351871918,1738825872602,-500.0,0.00020228,3]
[351871919,1738825872612,-500.0,0.00020228,3]
[351871920,1738825872622,-500.0,0.00020228,3]
[351871921,1738825872631,-500.0,0.00020228,3]
[351871922,1738825872640,-500.0,0.00020228,3]
[351871923,1738825872650,-500.0,0.00020228,3]
[351871924,1738825872660,-500.0,0.00020228,3]
[351871925,1738825872669,-391.82,0.00020228,3]
[351871926,1738825872679,-500.0,0.00020228,3]
[351871927,1738825872688,-500.0,0.00020228,3]
[351871928,1738825872698,-500.0,0.00020228,3]
[351871929,1738825872707,-500.0,0.00020228,3]
[351871930,1738825872716,-500.0,0.00020228,3]
[351871931,1738825872725,-500.0,0.00020228,3]
[351871932,1738825872735,-500.0,0.00020228,3]
[351871933,1738825872745,-500.0,0.00020228,3]
[351871934,1738825872754,-500.0,0.00020228,3]
[351871935,1738825872764,-500.0,0.00020228,3]
[351871936,1738825872773,-500.0,0.00020228,3]
[351871937,1738825872783,-500.0,0.00020228,3]
[351871938,1738825872792,-500.0,0.00020228,3]
[351871939,1738825872801,-500.0,0.00020228,3]
[351871940,1738825872811,-500.0,0.00020228,3]
[351871941,1738825872820,-500.0,0.00020228,3]
[351871942,1738825872830,-500.0,0.00020231,3]
[351871943,1738825872839,-500.0,0.00020231,3]
[351871944,1738825872849,-342.88,0.00020231,3]
[351871945,1738825872858,-500.0,0.00020231,3]
[351871946,1738825872868,-500.0,0.00020231,3]
[351871947,1738825872879,-500.0,0.00020231,3]
[351871948,1738825872888,-500.0,0.00020231,3]
[351871949,1738825872898,-500.0,0.00020231,3]
[351871950,1738825872907,-500.0,0.00020231,3]
[351871951,1738825872917,-500.0,0.00020231,3]
[351871952,1738825872927,-500.0,0.00020231,3]
[351871953,1738825872936,-500.0,0.00020231,3]
[351871954,1738825872946,-500.0,0.00020231,3]
[351871955,1738825872956,-500.0,0.00020231,3]
[351871956,1738825873034,-519.89,0.00020231,3]
[351871957,1738825873045,-500.0,0.00020231,3]
[351871958,1738825873054,-500.0,0.00020231,3]
[351871959,1738825873063,-500.0,0.00020231,3]
[351871960,1738825873072,-307.79696438,0.00020231,3]
[351871961,1738825873081,-500.0,0.00020231,3]
[351871962,1738825873091,-581.75,0.00020231,3]
[351871963,1738825873100,-500.0,0.00020231,3]
[351871964,1738825873110,-161.770571,0.00020231,3]
[351871965,1738825873124,-557.62,0.00020231,3]
[351871966,1738825873134,-500.0,0.00020231,3]
[351871967,1738825873143,-500.0,0.00020231,3]
[351871968,1738825873154,-1518.49,0.00020231,2]
[351871969,1738825873163,-500.0,0.00020231,3]
[351871970,1738825873171,-500.0,0.00020231,3]
[351871971,1738825873181,-285.85,0.00020231,3]
[351871972,1738825873191,-500.0,0.00020231,3]
[351871973,1738825873200,-666.0,0.00020231,2]
[351871974,1738825873209,-666.0,0.00020231,2]
[351871975,1738825873219,-666.0,0.00020231,2]
[351871976,1738825873228,-151.0,0.00020232,2]
[351871977,1738825873237,-151.0,0.00020232,2]
[351871978,1738825873246,-151.0,0.00020232,2]
[351871979,1738825873255,-151.0,0.00020232,2]
[351871980,1738825873265,-151.0,0.00020232,2]
[351871981,1738825873274,-151.0,0.00020232,2]
[351871982,1738825873284,-151.0,0.00020232,2]
[351871983,1738825873293,-197.0204,0.00020232,2]
[351871984,1738825873302,-197.0204,0.00020232,2]
[351871985,1738825873311,-197.0204,0.00020232,2]
[351871986,1738825873320,-197.0204,0.00020232,2]
[351871987,1738825873329,-197.0204,0.00020232,2]
[351871988,1738825873337,-197.0204,0.00020232,2]
[351871989,1738825873346,-197.0204,0.00020232,2]
[351871990,1738825873355,-197.0204,0.00020232,2]
[351871991,1738825873365,-197.0204,0.00020232,2]
[351871992,1738825873374,-197.0204,0.00020232,2]
[351871993,1738825873383,-197.0204,0.00020232,2]
[351871994,1738825873392,-197.0204,0.00020232,2]
[351871995,1738825873401,-197.0204,0.00020232,2]
[351871996,1738825873410,-197.0204,0.00020232,2]
[351871997,1738825873420,-197.0204,0.00020232,2]
[351871998,1738825873429,-197.0204,0.00020232,2]
[351871999,1738825873438,-197.0204,0.00020232,2]
[351872000,1738825873447,-197.020399,0.00020232,2]
[351872001,1738825873457,-500.0,0.00020232,3]
[351872002,1738825873466,-500.0,0.00020232,3]
[351872003,1738825873476,-500.0,0.00020232,3]
[351872004,1738825873485,-500.0,0.00020232,3]
[351872005,1738825873495,-500.0,0.00020232,3]
[351872006,1738825873504,-500.0,0.00020232,3]
[351872007,1738825873513,-420.37888845,0.00020232,3]
[351872008,1738825873523,-500.0,0.00020232,3]
[351872009,1738825873540,-500.0,0.00020232,3]
[351872010,1738825873558,-500.0,0.00020232,3]
[351872011,1738825873578,-500.0,0.00020232,3]
[351872012,1738825873596,-500.0,0.00020232,3]
[351872013,1738825873612,-624.26845899,0.00020232,3]
[351872014,1738825873631,-384.11,0.00020232,3]
[351872015,1738825873649,-382.86909033,0.00020232,3]
[351872016,1738825873668,-500.0,0.00020232,3]
[351872017,1738825873685,-500.0,0.00020232,3]
[351872018,1738825873703,-383.36826409,0.00020232,3]
[351872019,1738825873720,-500.0,0.00020232,3]
[351872020,1738825873734,-500.0,0.00020232,3]
[351872021,1738825873753,-500.0,0.00020232,3]
[351872022,1738825873766,-500.0,0.00020232,3]
[351872023,1738825873782,-500.0,0.00020232,3]
[351872024,1738825873797,-500.0,0.00020232,3]
[351872025,1738825873812,-500.0,0.00020232,3]
[351872026,1738825873827,-500.0,0.00020232,3]
[351872027,1738825873842,-500.0,0.00020232,3]
[351872028,1738825873857,-500.0,0.00020232,3]
[351872029,1738825873874,-500.0,0.00020232,3]
[351872030,1738825873889,-306.83359695,0.00020232,3]
[351872031,1738825873904,-500.0,0.00020232,3]
[351872032,1738825873919,-500.0,0.00020232,3]
[351872033,1738825873933,-500.0,0.00020232,3]
[351872034,1738825873948,-330.62,0.00020232,3]
[351872035,1738825873963,-500.0,0.00020232,3]
[351872036,1738825873978,-500.0,0.00020232,3]
[351872037,1738825873992,-500.0,0.00020232,3]
[351872038,1738825874007,-500.0,0.00020232,3]
[351872039,1738825874021,-500.0,0.00020232,3]
[351872040,1738825874036,-500.0,0.00020232,3]
[351872041,1738825874051,-500.0,0.00020232,3]
[351872042,1738825874066,-583.63453595,0.00020232,3]
[351872043,1738825874081,-500.0,0.00020232,3]
[351872044,1738825874096,-500.0,0.00020232,3]
[351872045,1738825874111,-500.0,0.00020232,3]
[351872046,1738825874129,-500.0,0.00020232,3]
[351872047,1738825874144,-574.60263873,0.00020232,3]
[351872048,1738825874160,-500.0,0.00020232,3]
[351872049,1738825874176,-500.0,0.00020232,3]
[351872050,1738825874191,-500.0,0.00020232,3]
[351872051,1738825874207,-500.0,0.00020232,3]
[351872052,1738825874222,-500.0,0.00020232,3]
[351872053,1738825874236,-500.0,0.00020232,3]
[351872054,1738825874251,-269.71690202,0.00020232,3]
[351872055,1738825874266,-500.0,0.00020232,3]
[351872056,1738825874281,-500.0,0.00020232,3]
[351872057,1738825874296,-167.32,0.00020232,3]
[351872058,1738825874310,-500.0,0.00020232,3]
[351872059,1738825874325,-500.0,0.00020232,3]
[351872060,1738825874339,-500.0,0.00020232,3]
[351872061,1738825874354,-301.31534523,0.00020232,3]
[351872062,1738825874460,-500.0,0.00020232,3]
[351872063,1738825874470,-219.98,0.00020232,3]
[351872064,1738825874479,-519.89,0.00020232,3]
[351872065,1738825874488,-519.89,0.00020232,3]
[351872066,1738825874498,-519.89,0.00020232,3]
[351872067,1738825874507,-519.89,0.00020232,3]
[351872068,1738825874516,-519.89,0.00020232,3]
[351872069,1738825874525,-519.89,0.00020232,3]
[351872070,1738825874535,-519.89,0.00020232,3]
[351872071,1738825874544,-519.89,0.00020232,3]
[351872072,1738825874553,-519.89,0.00020232,3]
[351872073,1738825874562,-519.89,0.00020232,3]
[351872074,1738825874571,-519.89,0.00020232,3]
[351872075,1738825874580,-519.89,0.00020232,3]
[351872076,1738825874589,-519.9937875,0.00020232,3]
[351872077,1738825874600,-500.0,0.00020232,3]
[351872078,1738825874609,-500.0,0.00020232,3]
[351872079,1738825874618,-534.22,0.00020232,3]
[351872080,1738825874629,-500.0,0.00020232,3]
[351872081,1738825874638,-500.0,0.00020232,3]
[351872082,1738825874647,-500.0,0.00020232,3]
[351872083,1738825874657,-500.0,0.00020232,3]
[351872084,1738825874666,-500.0,0.00020232,3]
[351872085,1738825874676,-321.98350725,0.00020232,3]
[351872086,1738825874685,-500.0,0.00020232,3]
[351872087,1738825874695,-500.0,0.00020232,3]
[351872088,1738825874704,-500.0,0.00020232,3]
[351872089,1738825874713,-500.0,0.00020232,3]
[351872090,1738825874722,-500.0,0.00020232,3]
[351872091,1738825874731,-500.0,0.00020232,3]
[351872092,1738825874741,-500.0,0.00020232,3]
[351872093,1738825874750,-500.0,0.00020232,3]
[351872094,1738825874760,-500.0,0.00020232,3]
[351872095,1738825874769,-468.93972173,0.00020232,3]
[351872096,1738825874779,-244.21169721,0.00020232,3]
[351872097,1738825874788,-581.75,0.00020232,3]
[351872098,1738825874798,-581.75,0.00020232,3]
[351872099,1738825874807,-581.75,0.00020232,3]
[351872100,1738825874816,-581.75,0.00020232,3]
[351872101,1738825874825,-581.75,0.00020232,3]
[351872102,1738825874835,-581.75,0.00020232,3]
[351872103,1738825874844,-500.0,0.00020232,3]
[351872104,1738825874853,-581.75,0.00020232,3]
[351872105,1738825874862,-500.0,0.00020232,3]
[351872106,1738825874872,-581.75,0.00020232,3]
[351872107,1738825874881,-302.35,0.00020232,3]
[351872108,1738825874890,-581.75,0.00020232,3]
[351872109,1738825874899,-581.75,0.00020232,3]
[351872110,1738825874909,-581.75,0.00020232,3]
[351872111,1738825874919,-581.75,0.00020232,3]
[351872112,1738825874928,-581.92269224,0.00020232,3]
[351872113,1738825874937,-500.0,0.00020232,3]
[351872114,1738825874947,-500.0,0.00020232,3]
[351872115,1738825874956,-500.0,0.00020232,3]
[351872116,1738825874966,-500.0,0.00020232,3]
[351872117,1738825874975,-500.0,0.00020232,3]
[351872118,1738825874984,-500.0,0.00020232,3]
[351872119,1738825874994,-500.0,0.00020232,3]
[351872120,1738825875003,-500.0,0.00020232,3]
[351872121,1738825875013,-500.0,0.00020232,3]
[351872122,1738825875022,-326.86403371,0.00020232,3]
[351872123,1738825875031,-500.0,0.00020232,3]
[351872124,1738825875040,-500.0,0.00020232,3]
[351872125,1738825875049,-500.0,0.00020232,3]
[351872126,1738825875058,-500.0,0.00020232,3]
[351872127,1738825875067,-500.0,0.00020232,3]
[351872128,1738825875076,-500.0,0.00020232,3]
[351872129,1738825875086,-500.0,0.00020232,3]
[351872130,1738825875094,-1518.49,0.00020232,2]
[351872131,1738825875103,-500.0,0.00020232,3]
[351872132,1738825875115,-1518.49,0.00020232,2]
[351872133,1738825875125,-568.31252457,0.00020232,3]
[351872134,1738825875134,-1518.49,0.00020232,2]
[351872135,1738825875144,-1518.49,0.00020232,2]
[351872136,1738825875154,-1518.49,0.00020232,2]
[351872137,1738825875163,-1518.49,0.00020232,2]
[351872138,1738825875172,-1518.49,0.00020232,2]
[351872139,1738825875182,-1518.49,0.00020232,2]
[351872140,1738825875191,-1518.49,0.00020232,2]
[351872141,1738825875200,-1518.49,0.00020232,2]
[351872142,1738825875209,-1518.49,0.00020232,2]
[351872143,1738825875219,-1518.69184494,0.00020232,2]
[351872144,1738825875229,-500.0,0.00020232,3]
[351872145,1738825875238,-500.0,0.00020232,3]
[351872146,1738825875247,-500.0,0.00020232,3]
[351872147,1738825875257,-436.46,0.00020232,3]
[351872148,1738825875267,-500.0,0.00020232,3]
[351872149,1738825875277,-500.0,0.00020232,3]
[351872150,1738825875286,-500.0,0.00020232,3]
[351872151,1738825875295,-500.0,0.00020232,3]
[351872152,1738825875304,-305.88,0.00020232,3]
[351872153,1738825875314,-500.0,0.00020232,3]
[351872154,1738825875323,-500.0,0.00020232,3]
[351872155,1738825875332,-500.0,0.00020232,3]
[351872156,1738825875342,-151.0,0.00020232,2]
[351872157,1738825875352,-500.0,0.00020232,3]
[351872158,1738825875361,-151.0,0.00020232,2]
[351872159,1738825875371,-500.0,0.00020232,3]
[351872160,1738825875382,-151.0,0.00020232,2]
[351872161,1738825875396,-634.24,0.00020232,3]
[351872162,1738825875406,-151.0,0.00020232,2]
[351872163,1738825875417,-151.0,0.00020232,2]
[351872164,1738825875426,-151.0,0.00020232,2]
[351872165,1738825875435,-151.0,0.00020232,2]
[351872166,1738825875444,-151.0,0.00020232,2]
[351872167,1738825875454,-156.01637741,0.00020245,2]
[351872168,1738825875464,-263558.69717964,0.00020245,2]
[351872169,1738825875476,-756321.21927118,0.00020245,30]
[351872170,1738825875487,-324.22351497,0.00020245,120]
[351872171,1738825875497,-1961.23099271,0.00020245,5]
[351872172,1738825875505,-695.6588482,0.00020245,10]
[351872173,1738825875514,-439.53618509,0.00020245,30]
[351872174,1738825875523,-430040.58898089,0.00020245,30]
[351872175,1738825875843,-9060.30982853,0.00020245,30]
[351872176,1738825875944,-500.0,0.0002,3]
[351872177,1738825875953,-322.24851724,0.00020019,3]
[351872178,1738825875969,-500.0,0.0002,3]
[351872179,1738825875979,-177.75148276,0.00020019,3]
[351872180,1738825875988,-500.0,0.00020019,3]
[351872181,1738825875998,-226.55551196,0.00020019,3]
[351872182,1738825876574,-274.52973244,0.00020019,3]
[351872183,1738825876583,-500.0,0.00020109,3]
[351872184,1738825876592,-500.0,0.00020137,3]
[351872185,1738825876603,-500.0,0.00020137,3]
[351872186,1738825876612,-472.07442413,0.00020217,3]
[351872187,1738825876628,-27.92557587,0.00020217,3]
[351872188,1738825876637,-153.27,0.00020219,3]
[351872189,1738825876647,-500.0,0.00020219,3]
[351872190,1738825876657,-500.0,0.00020219,3]
[351872191,1738825876667,-151.0,0.0002022,2]
[351872192,1738825876677,-500.0,0.00020226,3]
[351872193,1738825876686,-500.0,0.00020227,3]
[351872194,1738825876696,-500.0,0.00020231,3]
[351872195,1738825876706,-372.76,0.00020231,3]
[351872196,1738825876716,-500.0,0.00020231,3]
[351872197,1738825876726,-150.20442413,0.00020232,2]
[351872198,1738825876739,-0.79557587,0.00020232,2]
[351872199,1738825876748,-151.0,0.00020232,2]
[351872200,1738825876758,-457.65,0.00020232,3]
[351872201,1738825876767,-46.00636937,0.00020232,2]
[351872202,1738825876783,-503.04138024,0.00020019,3]
[351872203,1738825876793,-104.99363063,0.00020232,2]
[351872204,1738825876803,-162.904034,0.00020232,2]
[351872205,1738825876813,-214.22735513,0.00020245,30]
[351872206,1738825877082,-500.0,0.0002,3]
[351872207,1738825877093,-500.0,0.0002,3]
[351872208,1738825877103,-500.0,0.0002,3]
[351872209,1738825877114,-199.93,0.0002,3]
[351872210,1738825877130,-500.0,0.0002,3]
[351872211,1738825877139,-500.0,0.0002,3]
[351872212,1738825877149,-500.0,0.00020019,3]
[351872213,1738825877161,-369.01304665,0.00020019,3]
[351872214,1738825877171,-510.35991514,0.00020137,3]
[351872215,1738825877181,-3018197.62653171,0.00020245,30]
[351872216,1738825877194,-253960.10590208,0.00020245,30]
[351872217,1738825877205,-344.57571497,0.00020245,2]
[351872218,1738825877217,-208923.98720171,0.00020245,30]
[351872219,1738825877228,-211.32816376,0.00020245,7]
[351872220,1738825877238,-7796.01352901,0.00020245,7]
[351872221,1738825877248,-611.30637652,0.00020245,6]
[351872222,1738825877259,-1011.56069984,0.00020245,15]
[351872223,1738825877271,-1404.00285747,0.00020245,10]
[351872224,1738825877281,-753.49145334,0.00020245,2]
[351872225,1738825877292,-1504.47791487,0.00020245,2]
[351872226,1738825877302,-240.060328,0.00020245,120]
[351872227,1738825877311,-352588.10575449,0.00020245,2]
[351872228,1738825877320,-1018.54641601,0.00020245,2]
[351872229,1738825877331,-5128.57790526,0.00020245,2]
[351872230,1738825877341,-597.40569257,0.00020245,120]
[351872231,1738825877352,-523.66075218,0.00020245,7]
[351872232,1738825877362,-2428.98300203,0.00020245,2]
[351872233,1738825877372,-300.0,0.00020245,15]
[351872234,1738825877385,-80061.35469033,0.00020245,2]
[351872235,1738825877395,-2384.45323533,0.00020245,120]
[351872236,1738825877408,-13119.51727651,0.00020245,2]
[351872237,1738825877419,-14312.35874808,0.00020245,2]
[351872238,1738825877429,-49511.26245977,0.00020245,2]
[351872239,1738825877439,-3070.49772569,0.00020245,5]
[351872240,1738825877449,-4783.49764578,0.00020245,10]
[351872241,1738825877459,-542.34764649,0.00020245,2]
[351872242,1738825877469,-4958.95431834,0.00020245,2]
[351872243,1738825877479,-5146.91095988,0.00020245,2]
[351872244,1738825877488,-1001.56072902,0.00020245,2]
[351872245,1738825877498,-270.58824655,0.00020245,10]
[351872246,1738825877508,-361.12029132,0.00020245,2]
[351872247,1738825877518,-13146.15283932,0.00020245,5]
[351872248,1738825877528,-2183.26163786,0.00020245,2]
[351872249,1738825877538,-57796.7535166,0.00020245,30]
[351872250,1738825877548,-280.83347262,0.00020245,2]
[351872251,1738825877558,-777.92398784,0.00020245,120]
[351872252,1738825877568,-640.00589488,0.00020245,30]
[351872253,1738825877577,-305590.40037914,0.00020245,30]
[351872254,1738825877587,-56571.77669962,0.00020245,30]
[351872255,1738825877597,-63237.08952532,0.00020245,30]
[351872256,1738825877606,-14621.74210896,0.00020245,2]
[351872257,1738825877615,-22147.44351876,0.00020245,45]
[351872258,1738825877628,-24843.43048125,0.00020245,14]
[351872259,1738825877637,-5757.70707106,0.00020245,10]
[351872260,1738825877647,-191608.3416226,0.00020245,60]
[351872261,1738825877978,-500.0,0.0002,3]
[351872262,1738825877988,-500.0,0.0002,3]
[351872263,1738825877998,-500.0,0.0002,3]
[351872264,1738825878008,-500.0,0.0002,3]
[351872265,1738825878017,-500.0,0.0002,3]
[351872266,1738825878027,-500.0,0.0002,3]
[351872267,1738825878036,-596.06,0.0002,3]
[351872268,1738825878045,-500.0,0.0002,3]
[351872269,1738825878055,-500.0,0.0002,3]
[351872270,1738825878065,-500.0,0.0002,3]
[351872271,1738825878074,-205.26,0.00020018,3]
[351872272,1738825878084,-500.0,0.00020019,3]
[351872273,1738825878093,-500.51786291,0.00020019,3]
[351872274,1738825878103,-500.0,0.00020019,3]
[351872275,1738825878112,-503.39186551,0.00020019,3]
[351872276,1738825878122,-500.0,0.00020137,3]
[351872277,1738825878137,-500.0,0.00020137,3]
[351872278,1738825878147,-6339.59526356,0.00020245,60]
[351872279,1738825878159,-1779.27977801,0.00020245,60]
[351872280,1738825974545,160.61278,9.881e-05,2]
[351872281,1738825975289,160.61278,0.00010018,2]
[351872282,1738825975610,160.61278,0.00010155,2]
[351872283,1738825975949,160.61278,0.00010292,2]
[351872284,1738825976264,160.61278,0.00010429,2]
[351872285,1738825976578,160.61278,0.00010566,2]
[351872286,1738825976907,160.61278,0.00010703,2]
[351872287,1738825977260,160.61278,0.0001084,2]
[351872288,1738825977661,160.61278,0.00010977,2]
[351872289,1738825977870,160.61278,0.00011114,2]
[351872290,1738825978204,160.61278,0.00011251,2]
[351872291,1738825978514,160.61278,0.00011388,2]
[351872292,1738825989698,174.512889,9.881e-05,2]
[351872293,1738825990461,174.512889,0.00010018,2]
[351872294,1738825990771,174.512889,0.00010155,2]
[351872295,1738825991110,174.512889,0.00010292,2]
[351872296,1738825991435,174.512889,0.00010429,2]
[351872297,1738825991743,174.512889,0.00010566,2]
[351872298,1738825992053,174.512889,0.00010703,2]
[351872299,1738825992386,174.512889,0.0001084,2]
[351872300,1738825992728,174.512889,0.00010977,2]
[351872301,1738825993061,174.512889,0.00011114,2]
[351872302,1738825993412,174.512889,0.00011251,2]
[351872303,1738825994185,174.512889,0.00011388,2]
[351872305,1738826273267,160.61278,9.881e-05,2]
[351872306,1738826273581,160.61278,0.00010155,2]
[351872307,1738826273913,160.61278,0.00010429,2]
[351872308,1738826274242,160.61278,0.00010566,2]
[351872309,1738826274571,160.61278,0.0001084,2]
[351872310,1738826274902,160.61278,0.00011114,2]
[351872311,1738826275238,160.61278,0.00011251,2]
[351872312,1738826288008,161.088821,9.881e-05,2]
[351872313,1738826288771,161.088821,0.00010155,2]
[351872314,1738826289097,161.088821,0.00010292,2]
[351872315,1738826289417,161.088821,0.00010566,2]
[351872316,1738826289754,161.088821,0.0001084,2]
[351872317,1738826290096,161.088821,0.00010977,2]
[351872318,1738826290454,161.088821,0.00011251,2]
[351872319,1738826334726,160.61278,9.881e-05,2]
[351872320,1738826335060,160.61278,0.00010429,2]
[351872321,1738826335369,160.61278,0.00011114,2]
[351872328,1738826478297,155.639737,9.881e-05,2]
[351872329,1738826512505,160.61278,9.881e-05,2]
[351872330,1738826512831,160.61278,0.00010155,2]
[351872331,1738826513153,160.61278,0.00010429,2]
[351872332,1738826513506,160.61278,0.00010703,2]
[351872333,1738826513831,160.61278,0.0001084,2]
[351872334,1738826514154,160.61278,0.00011114,2]
[351872335,1738826514475,160.61278,0.00011388,2]
[351872336,1738826528956,153.034379,9.881e-05,2]
[351872337,1738826529448,153.034379,0.00010155,2]
[351872338,1738826529769,153.034379,0.00010292,2]
[351872339,1738826530083,153.034379,0.00010566,2]
[351872340,1738826530419,153.034379,0.00010703,2]
[351872341,1738826530803,153.034379,0.00010977,2]
[351872342,1738826531248,153.034379,0.00011114,2]
[351872343,1738826531522,153.034379,0.00011388,2]
[351872344,1738826573357,160.61278,9.881e-05,2]
[351872345,1738826573686,160.61278,0.00010429,2]
[351872346,1738826574175,160.61278,0.00011114,2]
[351872347,1738826706912,161.770572,9.881e-05,2]
[351872348,1738826707259,161.770572,0.00010292,2]
[351872349,1738826707576,161.770572,0.00010566,2]
[351872350,1738826707864,161.770572,0.00010977,2]
[351872352,1738826708153,161.770572,0.00011251,2]
[351872353,1738826708226,514254.93589096,0.0001,2]
[351872356,1738826719563,447.65233746,9e-05,2]
[351872357,1738826726687,153.48,0.00010137,2]
[351872362,1738826753893,160.61278,9.881e-05,2]
[351872363,1738826754284,160.61278,0.00010292,2]
[351872364,1738826755055,160.61278,0.00010566,2]
[351872365,1738826755566,160.61278,0.00010977,2]
[351872366,1738826755885,160.61278,0.00011251,2]
[351872371,1738826808131,7677.06816546,0.0002,120]
[351872372,1738826817512,160.61278,9.881e-05,2]
[351872373,1738826817820,160.61278,0.00010292,2]
[351872374,1738826818146,160.61278,0.0001084,2]
[351872375,1738826818465,160.61278,0.00011251,2]
[351872376,1738826820722,139682.17649253,9.37e-05,2]
[351872377,1738826828750,156.252976,9.881e-05,2]